[Event "Early-Titled-Tuesday-Blitz-November-28-2023"]
[Site "Chess.com"]
[Date "2023.11.28"]
[Round "8"]
[White "Zavgorodniy_Sergiy"]
[Black "Pingah9"]
[Result "1-0"]
[WhiteElo "2696"]
[BlackElo "2532"]
[TimeControl "180+1"]
[EndTime "9:33:45 PST"]
[Termination "Zavgorodniy_Sergiy won by resignation"]

1. e4 {[%clk 0:03:00.9]} 1... c5 {[%clk 0:02:56.8]} 2. Nf3 {[%clk 0:03:00.9]}
2... e6 {[%clk 0:02:56]} 3. d3 {[%clk 0:02:58.7]} 3... d5 {[%clk 0:02:53.1]} 4.
Nbd2 {[%clk 0:02:58.1]} 4... Nc6 {[%clk 0:02:53]} 5. g3 {[%clk 0:02:57.8]} 5...
g6 {[%clk 0:02:50.1]} 6. Bg2 {[%clk 0:02:56.7]} 6... Bg7 {[%clk 0:02:50.4]} 7.
O-O {[%clk 0:02:53.4]} 7... Nge7 {[%clk 0:02:50.4]} 8. Re1 {[%clk 0:02:53.2]}
8... O-O {[%clk 0:02:50.3]} 9. c3 {[%clk 0:02:51.4]} 9... b6 {[%clk 0:02:49.6]}
10. e5 {[%clk 0:02:48.8]} 10... a5 {[%clk 0:02:49.2]} 11. Nf1 {[%clk 0:02:46.2]}
11... h6 {[%clk 0:02:40.7]} 12. h4 {[%clk 0:02:45.1]} 12... Ba6 {[%clk
0:02:32.5]} 13. Bf4 {[%clk 0:02:39.5]} 13... Rc8 {[%clk 0:02:30.1]} 14. Qd2
{[%clk 0:02:38.8]} 14... Kh7 {[%clk 0:02:29.2]} 15. N1h2 {[%clk 0:02:38.6]}
15... d4 {[%clk 0:02:17.3]} 16. c4 {[%clk 0:02:36.7]} 16... b5 {[%clk
0:02:15.7]} 17. b3 {[%clk 0:02:35.6]} 17... Nf5 {[%clk 0:02:05.8]} 18. Ng4
{[%clk 0:02:10.5]} 18... a4 {[%clk 0:01:47.5]} 19. h5 {[%clk 0:01:43.4]} 19...
gxh5 {[%clk 0:01:41.5]} 20. Nf6+ {[%clk 0:01:36.8]} 20... Bxf6 {[%clk
0:01:40.5]} 21. exf6 {[%clk 0:01:37]} 21... Qxf6 {[%clk 0:01:36.9]} 22. Ne5
{[%clk 0:01:35.3]} 22... Nxe5 {[%clk 0:01:26.4]} 23. Rxe5 {[%clk 0:01:27.9]}
23... b4 {[%clk 0:01:06.4]} 24. Be4 {[%clk 0:01:22.9]} 24... Rg8 {[%clk
0:01:01.7]} 25. Kg2 {[%clk 0:01:17]} 25... h4 {[%clk 0:00:56.6]} 26. Rh1 {[%clk
0:01:16]} 26... Rg6 {[%clk 0:00:54.2]} 27. Qe2 {[%clk 0:01:07.7]} 27... hxg3
{[%clk 0:00:33]} 28. fxg3 {[%clk 0:01:00.6]} 28... Nh4+ {[%clk 0:00:27.6]} 29.
Rxh4 {[%clk 0:00:49.8]} 1-0

[Event "Early-Titled-Tuesday-Blitz-November-28-2023"]
[Site "Chess.com"]
[Date "2023.11.28"]
[Round "8"]
[White "AnaKuchava"]
[Black "FMOlexandrProhorov"]
[Result "0-1"]
[WhiteElo "2212"]
[BlackElo "2325"]
[TimeControl "180+1"]
[EndTime "9:33:46 PST"]
[Termination "FMOlexandrProhorov won on time"]

1. d4 {[%clk 0:03:00.9]} 1... Nc6 {[%clk 0:02:56.2]} 2. Nf3 {[%clk 0:02:59.3]}
2... d6 {[%clk 0:02:55.4]} 3. c4 {[%clk 0:02:56.2]} 3... Bg4 {[%clk 0:02:55.2]}
4. Nc3 {[%clk 0:02:53.4]} 4... e5 {[%clk 0:02:42.9]} 5. d5 {[%clk 0:02:47.7]}
5... Nce7 {[%clk 0:02:42.3]} 6. e4 {[%clk 0:02:46.3]} 6... g6 {[%clk 0:02:38.9]}
7. h3 {[%clk 0:02:41.1]} 7... Bd7 {[%clk 0:02:34.9]} 8. Be3 {[%clk 0:02:28.7]}
8... f5 {[%clk 0:02:33.4]} 9. exf5 {[%clk 0:02:16.8]} 9... gxf5 {[%clk
0:02:30.2]} 10. Ng5 {[%clk 0:02:11.8]} 10... Ng6 {[%clk 0:02:22.4]} 11. Ne6
{[%clk 0:01:59.2]} 11... Bxe6 {[%clk 0:02:20.1]} 12. dxe6 {[%clk 0:02:00.1]}
12... c6 {[%clk 0:02:19.9]} 13. Qb3 {[%clk 0:01:55.3]} 13... Qc7 {[%clk
0:02:03.2]} 14. Bd3 {[%clk 0:01:52.7]} 14... f4 {[%clk 0:01:57.3]} 15. Bd2
{[%clk 0:01:48.7]} 15... Nf6 {[%clk 0:01:57.4]} 16. O-O-O {[%clk 0:01:39.1]}
16... Be7 {[%clk 0:01:42]} 17. Kb1 {[%clk 0:01:31.1]} 17... O-O-O {[%clk
0:01:34.1]} 18. Rc1 {[%clk 0:01:09]} 18... Kb8 {[%clk 0:01:29.1]} 19. f3 {[%clk
0:01:00.6]} 19... Rhg8 {[%clk 0:01:26]} 20. Rhg1 {[%clk 0:00:33.9]} 20... Nh4
{[%clk 0:01:25.6]} 21. Be1 {[%clk 0:00:14.9]} 21... Nxg2 {[%clk 0:01:19.6]} 22.
Bf2 {[%clk 0:00:14.5]} 22... Ne3 {[%clk 0:01:14.6]} 23. Bxe3 {[%clk 0:00:12.3]}
23... fxe3 {[%clk 0:01:15.5]} 24. Rce1 {[%clk 0:00:07.2]} 24... Nh5 {[%clk
0:01:14.9]} 25. Rg4 {[%clk 0:00:05.5]} 25... h6 {[%clk 0:01:07]} 26. Rxe3 {[%clk
0:00:04.8]} 26... Bg5 {[%clk 0:01:06.3]} 27. Re2 {[%clk 0:00:03.3]} 27... Rdf8
{[%clk 0:01:05.8]} 28. Be4 {[%clk 0:00:01.7]} 28... Nf4 {[%clk 0:01:05.6]} 0-1

[Event "Early-Titled-Tuesday-Blitz-November-28-2023"]
[Site "Chess.com"]
[Date "2023.11.28"]
[Round "8"]
[White "Kostukov_Alex"]
[Black "Shuvalov"]
[Result "0-1"]
[WhiteElo "2404"]
[BlackElo "2571"]
[TimeControl "180+1"]
[EndTime "9:33:47 PST"]
[Termination "Shuvalov won by resignation"]

1. g3 {[%clk 0:02:51.6]} 1... d5 {[%clk 0:02:59.2]} 2. Bg2 {[%clk 0:02:51.7]}
2... Nf6 {[%clk 0:02:59.6]} 3. d3 {[%clk 0:02:51.9]} 3... e6 {[%clk 0:02:55.8]}
4. e4 {[%clk 0:02:51.9]} 4... Be7 {[%clk 0:02:55.8]} 5. e5 {[%clk 0:02:49.9]}
5... Nfd7 {[%clk 0:02:55.4]} 6. Nf3 {[%clk 0:02:50.2]} 6... c5 {[%clk
0:02:55.1]} 7. O-O {[%clk 0:02:50.7]} 7... Nc6 {[%clk 0:02:55.4]} 8. Re1 {[%clk
0:02:49]} 8... O-O {[%clk 0:02:54.7]} 9. c4 {[%clk 0:02:49.6]} 9... Ndb8 {[%clk
0:02:46.2]} 10. Nc3 {[%clk 0:02:42.6]} 10... Nd4 {[%clk 0:02:45.7]} 11. cxd5
{[%clk 0:02:38.3]} 11... exd5 {[%clk 0:02:41.9]} 12. Nxd4 {[%clk 0:02:37.9]}
12... cxd4 {[%clk 0:02:42]} 13. Nxd5 {[%clk 0:02:38]} 13... Nc6 {[%clk
0:02:40.2]} 14. Nxe7+ {[%clk 0:02:33.9]} 14... Qxe7 {[%clk 0:02:40.3]} 15. f4
{[%clk 0:02:32.6]} 15... Bf5 {[%clk 0:02:34.4]} 16. a3 {[%clk 0:02:28.6]} 16...
Rac8 {[%clk 0:02:33.1]} 17. b4 {[%clk 0:02:26.2]} 17... Qe6 {[%clk 0:02:31.8]}
18. Bf3 {[%clk 0:02:17.2]} 18... Qd7 {[%clk 0:02:09.7]} 19. Bb2 {[%clk
0:02:00.6]} 19... Rfd8 {[%clk 0:02:00.3]} 20. Qe2 {[%clk 0:01:59.1]} 20... a5
{[%clk 0:01:57.6]} 21. b5 {[%clk 0:01:55.3]} 21... Ne7 {[%clk 0:01:57.7]} 22. a4
{[%clk 0:01:54.9]} 22... Nd5 {[%clk 0:01:53.1]} 23. Rac1 {[%clk 0:01:34.7]}
23... Nc3 {[%clk 0:01:45]} 24. Qg2 {[%clk 0:01:27.5]} 24... Bxd3 {[%clk
0:01:39.9]} 25. Bxb7 {[%clk 0:01:26.4]} 25... Rc4 {[%clk 0:01:31.6]} 26. Bc6
{[%clk 0:01:18]} 26... Qc7 {[%clk 0:01:30.2]} 27. Bxc3 {[%clk 0:01:12.7]} 27...
dxc3 {[%clk 0:01:27.5]} 28. Re3 {[%clk 0:01:10]} 28... c2 {[%clk 0:01:17]} 29.
Qf3 {[%clk 0:00:54]} 29... Qb6 {[%clk 0:01:02.1]} 30. Kg2 {[%clk 0:00:49.8]}
30... Rc3 {[%clk 0:01:00.5]} 31. Kf2 {[%clk 0:00:39.9]} 31... Qd4 {[%clk
0:00:52.7]} 32. b6 {[%clk 0:00:34.2]} 32... Qxb6 {[%clk 0:00:51.9]} 33. Bb5
{[%clk 0:00:32.7]} 33... Bxb5 {[%clk 0:00:50.8]} 34. axb5 {[%clk 0:00:33]} 34...
Rd2+ {[%clk 0:00:50.5]} 0-1

[Event "Early-Titled-Tuesday-Blitz-November-28-2023"]
[Site "Chess.com"]
[Date "2023.11.28"]
[Round "8"]
[White "MatthewG-p4p"]
[Black "Karateloru"]
[Result "1-0"]
[WhiteElo "2943"]
[BlackElo "2788"]
[TimeControl "180+1"]
[EndTime "9:33:53 PST"]
[Termination "MatthewG-p4p won by resignation"]

1. e4 {[%clk 0:02:52.6]} 1... e5 {[%clk 0:02:59.3]} 2. Nf3 {[%clk 0:02:52.6]}
2... Nc6 {[%clk 0:02:59.1]} 3. d4 {[%clk 0:02:52.8]} 3... exd4 {[%clk 0:02:59]}
4. Nxd4 {[%clk 0:02:53.7]} 4... Nf6 {[%clk 0:02:58.5]} 5. Nxc6 {[%clk 0:02:53]}
5... bxc6 {[%clk 0:02:58.5]} 6. e5 {[%clk 0:02:52.7]} 6... Qe7 {[%clk
0:02:58.1]} 7. Qe2 {[%clk 0:02:51]} 7... Nd5 {[%clk 0:02:57.4]} 8. h4 {[%clk
0:02:49.6]} 8... Bb7 {[%clk 0:02:56.4]} 9. c4 {[%clk 0:02:41.9]} 9... Nb6 {[%clk
0:02:54.9]} 10. Nc3 {[%clk 0:02:26.9]} 10... Qe6 {[%clk 0:02:21.8]} 11. Bd2
{[%clk 0:01:57.8]} 11... O-O-O {[%clk 0:02:16.2]} 12. O-O-O {[%clk 0:01:49.9]}
12... Ba6 {[%clk 0:02:15.6]} 13. b3 {[%clk 0:01:47.8]} 13... Ba3+ {[%clk
0:02:14.1]} 14. Kc2 {[%clk 0:01:47.2]} 14... Rhe8 {[%clk 0:02:10]} 15. f4 {[%clk
0:01:28.6]} 15... f6 {[%clk 0:01:46.7]} 16. Qf3 {[%clk 0:01:09.6]} 16... Bb7
{[%clk 0:01:02.2]} 17. Bd3 {[%clk 0:01:02.7]} 17... fxe5 {[%clk 0:00:55.8]} 18.
Rhe1 {[%clk 0:00:55.5]} 18... c5 {[%clk 0:00:44]} 19. Qg3 {[%clk 0:00:52.2]}
19... exf4 {[%clk 0:00:37.2]} 20. Bxf4 {[%clk 0:00:47]} 20... Qc6 {[%clk
0:00:36.5]} 21. Nb5 {[%clk 0:00:45.9]} 21... Qf6 {[%clk 0:00:25]} 22. Nxa3
{[%clk 0:00:40.1]} 22... d5 {[%clk 0:00:23.4]} 23. Bg5 {[%clk 0:00:31.5]} 1-0

[Event "Early-Titled-Tuesday-Blitz-November-28-2023"]
[Site "Chess.com"]
[Date "2023.11.28"]
[Round "8"]
[White "Felix-Rose"]
[Black "campochess"]
[Result "1-0"]
[WhiteElo "2337"]
[BlackElo "2222"]
[TimeControl "180+1"]
[EndTime "9:33:53 PST"]
[Termination "Felix-Rose won by resignation"]

1. e4 {[%clk 0:03:00]} 1... c5 {[%clk 0:02:59.7]} 2. Nf3 {[%clk 0:03:00]} 2...
Nc6 {[%clk 0:02:59.9]} 3. d4 {[%clk 0:03:00.4]} 3... cxd4 {[%clk 0:03:00.1]} 4.
Nxd4 {[%clk 0:03:01.3]} 4... e5 {[%clk 0:03:00]} 5. Nb5 {[%clk 0:03:00.9]} 5...
a6 {[%clk 0:03:00.2]} 6. Nd6+ {[%clk 0:03:00.9]} 6... Bxd6 {[%clk 0:03:00.2]} 7.
Qxd6 {[%clk 0:03:01.8]} 7... Qe7 {[%clk 0:03:00.4]} 8. Qd1 {[%clk 0:03:01.2]}
8... Nf6 {[%clk 0:03:00.4]} 9. Nc3 {[%clk 0:03:01.2]} 9... h6 {[%clk 0:03:00.6]}
10. Be3 {[%clk 0:02:59.9]} 10... d6 {[%clk 0:03:00.4]} 11. Be2 {[%clk
0:03:00.1]} 11... Be6 {[%clk 0:03:00.2]} 12. f3 {[%clk 0:02:59]} 12... Rd8
{[%clk 0:02:59.9]} 13. Nd5 {[%clk 0:02:59.2]} 13... Bxd5 {[%clk 0:02:58.1]} 14.
exd5 {[%clk 0:02:59.4]} 14... Nb8 {[%clk 0:02:57.1]} 15. a4 {[%clk 0:02:53.2]}
15... O-O {[%clk 0:02:56.5]} 16. a5 {[%clk 0:02:51.3]} 16... Nbd7 {[%clk
0:02:56.7]} 17. c4 {[%clk 0:02:42.5]} 17... Rc8 {[%clk 0:02:56.4]} 18. O-O
{[%clk 0:02:32.3]} 18... Nh7 {[%clk 0:02:55.9]} 19. b4 {[%clk 0:02:30.6]} 19...
f5 {[%clk 0:02:55.5]} 20. Rc1 {[%clk 0:02:14.2]} 20... Kh8 {[%clk 0:02:55.1]}
21. Qd2 {[%clk 0:02:11.2]} 21... f4 {[%clk 0:02:53.5]} 22. Bf2 {[%clk
0:02:08.3]} 22... Rfd8 {[%clk 0:02:44.3]} 23. Rfd1 {[%clk 0:01:48.8]} 23... Nhf8
{[%clk 0:02:40.6]} 24. c5 {[%clk 0:01:46]} 24... Nf6 {[%clk 0:02:35.1]} 25. c6
{[%clk 0:01:40]} 25... bxc6 {[%clk 0:02:28.6]} 26. dxc6 {[%clk 0:01:39.6]} 26...
d5 {[%clk 0:02:28.3]} 27. Bxa6 {[%clk 0:01:35.7]} 27... Ne6 {[%clk 0:02:21.5]}
28. Bxc8 {[%clk 0:01:32]} 28... Rxc8 {[%clk 0:02:21.6]} 29. b5 {[%clk
0:01:31.7]} 29... e4 {[%clk 0:02:21.8]} 30. fxe4 {[%clk 0:01:28.6]} 30... dxe4
{[%clk 0:02:21.2]} 31. Qd6 {[%clk 0:01:27.5]} 31... Qf7 {[%clk 0:02:15.9]} 32.
b6 {[%clk 0:01:19.7]} 32... e3 {[%clk 0:02:15.4]} 33. Be1 {[%clk 0:01:19.7]}
33... Ne4 {[%clk 0:02:13.3]} 34. Qd7 {[%clk 0:01:12.4]} 34... Qg8 {[%clk
0:02:08.2]} 35. c7 {[%clk 0:00:57.3]} 35... f3 {[%clk 0:02:07.3]} 36. gxf3
{[%clk 0:00:51.4]} 36... N4g5 {[%clk 0:02:03.7]} 37. Qxc8 {[%clk 0:00:45.4]}
37... Qxc8 {[%clk 0:02:01.2]} 38. b7 {[%clk 0:00:45.2]} 38... Nxf3+ {[%clk
0:01:54.2]} 39. Kh1 {[%clk 0:00:42.4]} 39... Qxb7 {[%clk 0:01:47]} 40. c8=Q+
{[%clk 0:00:41.8]} 40... Qxc8 {[%clk 0:01:47.2]} 41. Rxc8+ {[%clk 0:00:41.8]}
41... Kh7 {[%clk 0:01:43.3]} 42. a6 {[%clk 0:00:40.6]} 42... e2 {[%clk
0:01:42.7]} 43. Ra1 {[%clk 0:00:38.6]} 43... Nf4 {[%clk 0:01:41.5]} 44. a7
{[%clk 0:00:34.5]} 44... Nd3 {[%clk 0:01:38.8]} 45. Bg3 {[%clk 0:00:30.6]} 45...
h5 {[%clk 0:01:31.6]} 46. a8=Q {[%clk 0:00:29.6]} 46... h4 {[%clk 0:01:31.8]}
47. Qxf3 {[%clk 0:00:28.8]} 47... hxg3 {[%clk 0:01:30.6]} 48. Qxd3+ {[%clk
0:00:28.7]} 1-0

[Event "Early-Titled-Tuesday-Blitz-November-28-2023"]
[Site "Chess.com"]
[Date "2023.11.28"]
[Round "8"]
[White "Vesper2018"]
[Black "ATM622"]
[Result "0-1"]
[WhiteElo "2601"]
[BlackElo "2479"]
[TimeControl "180+1"]
[EndTime "9:33:56 PST"]
[Termination "ATM622 won by checkmate"]

1. e4 {[%clk 0:03:00.9]} 1... c6 {[%clk 0:02:58.2]} 2. d4 {[%clk 0:03:00.8]}
2... d5 {[%clk 0:02:59.1]} 3. e5 {[%clk 0:03:01.4]} 3... Bf5 {[%clk 0:02:56.9]}
4. g4 {[%clk 0:03:01.3]} 4... Bg6 {[%clk 0:02:57]} 5. e6 {[%clk 0:02:59.5]} 5...
fxe6 {[%clk 0:02:55.8]} 6. h4 {[%clk 0:02:59]} 6... h5 {[%clk 0:02:54.9]} 7. Bd3
{[%clk 0:02:57.5]} 7... Bxd3 {[%clk 0:02:51.3]} 8. Qxd3 {[%clk 0:02:57.3]} 8...
hxg4 {[%clk 0:02:51.7]} 9. Ne2 {[%clk 0:02:49]} 9... Nf6 {[%clk 0:02:48.4]} 10.
Nbc3 {[%clk 0:02:36.1]} 10... Qa5 {[%clk 0:02:35.8]} 11. Qg6+ {[%clk 0:02:29.8]}
11... Kd7 {[%clk 0:02:17.4]} 12. Nf4 {[%clk 0:02:29.9]} 12... Rh6 {[%clk
0:02:14.4]} 13. Qf7 {[%clk 0:02:23.6]} 13... Ne4 {[%clk 0:02:12.2]} 14. Qxf8
{[%clk 0:02:18.9]} 14... Rf6 {[%clk 0:02:04.4]} 15. Qxg7 {[%clk 0:01:56.4]}
15... Nxc3 {[%clk 0:02:04.3]} 16. Bd2 {[%clk 0:01:56.1]} 16... Rxf4 {[%clk
0:02:02]} 17. Bxf4 {[%clk 0:01:43.6]} 17... Ne4+ {[%clk 0:01:56.2]} 18. c3
{[%clk 0:01:33.5]} 18... Qb5 {[%clk 0:01:48.5]} 19. Bg5 {[%clk 0:01:16.7]} 19...
Kc7 {[%clk 0:01:37.6]} 20. Qxe7+ {[%clk 0:01:11.6]} 20... Nd7 {[%clk 0:01:36]}
21. Bf4+ {[%clk 0:01:11.5]} 21... Kb6 {[%clk 0:01:33.9]} 22. Qxd7 {[%clk
0:01:02.5]} 22... Qxb2 {[%clk 0:01:33.5]} 23. O-O {[%clk 0:01:01.5]} 23... Nxc3
{[%clk 0:01:30.4]} 24. Kg2 {[%clk 0:00:51.9]} 24... Ka6 {[%clk 0:01:26.4]} 25.
Rfe1 {[%clk 0:00:43.1]} 25... Rf8 {[%clk 0:01:21.8]} 26. Be3 {[%clk 0:00:23.7]}
26... g3 {[%clk 0:01:16.2]} 27. Kxg3 {[%clk 0:00:17.5]} 27... Ne4+ {[%clk
0:01:16]} 28. Kg4 {[%clk 0:00:18]} 28... Nf6+ {[%clk 0:01:03.4]} 29. Kg5 {[%clk
0:00:17]} 29... Nxd7 {[%clk 0:01:03.7]} 30. h5 {[%clk 0:00:16.7]} 30... Qc2
{[%clk 0:01:03.4]} 31. h6 {[%clk 0:00:14.2]} 31... Rg8+ {[%clk 0:01:03.7]} 32.
Kh4 {[%clk 0:00:11]} 32... Qe4+ {[%clk 0:01:03.5]} 33. f4 {[%clk 0:00:11.2]}
33... Qg6 {[%clk 0:01:03.1]} 34. f5 {[%clk 0:00:08.3]} 34... Qg4# {[%clk
0:01:02.7]} 0-1

[Event "Early-Titled-Tuesday-Blitz-November-28-2023"]
[Site "Chess.com"]
[Date "2023.11.28"]
[Round "8"]
[White "marvinguevara"]
[Black "DvaHrasta"]
[Result "0-1"]
[WhiteElo "2183"]
[BlackElo "2513"]
[TimeControl "180+1"]
[EndTime "9:33:56 PST"]
[Termination "DvaHrasta won by checkmate"]

1. e4 {[%clk 0:03:00.9]} 1... c6 {[%clk 0:02:59.4]} 2. d4 {[%clk 0:03:00.4]}
2... d5 {[%clk 0:02:59.5]} 3. e5 {[%clk 0:03:00.9]} 3... c5 {[%clk 0:02:59.5]}
4. dxc5 {[%clk 0:02:57.4]} 4... e6 {[%clk 0:02:59.3]} 5. Be3 {[%clk 0:02:53.6]}
5... Ne7 {[%clk 0:02:58.8]} 6. f4 {[%clk 0:02:50]} 6... Nf5 {[%clk 0:02:53.2]}
7. Bf2 {[%clk 0:02:49.6]} 7... g5 {[%clk 0:02:53.4]} 8. fxg5 {[%clk 0:02:41.1]}
8... Qxg5 {[%clk 0:02:45]} 9. Nf3 {[%clk 0:02:40.9]} 9... Qg6 {[%clk 0:02:37.8]}
10. c3 {[%clk 0:02:38.7]} 10... a5 {[%clk 0:02:28.9]} 11. b4 {[%clk 0:02:30.3]}
11... axb4 {[%clk 0:02:24.4]} 12. cxb4 {[%clk 0:02:30]} 12... b6 {[%clk
0:02:24.1]} 13. Bb5+ {[%clk 0:02:25.8]} 13... Bd7 {[%clk 0:02:20.5]} 14. Bxd7+
{[%clk 0:02:22.8]} 14... Nxd7 {[%clk 0:02:20.6]} 15. cxb6 {[%clk 0:02:18.6]}
15... Bxb4+ {[%clk 0:02:19.4]} 16. Nbd2 {[%clk 0:02:18.6]} 16... Qxg2 {[%clk
0:01:52.2]} 17. Rg1 {[%clk 0:02:17.9]} 17... Bxd2+ {[%clk 0:01:51.7]} 18. Kxd2
{[%clk 0:02:15]} 18... Qxf2+ {[%clk 0:01:49.8]} 19. Kc1 {[%clk 0:02:09.4]} 19...
Qxb6 {[%clk 0:01:42.7]} 20. Qd2 {[%clk 0:02:01.5]} 20... Ra3 {[%clk 0:01:34.7]}
21. Rb1 {[%clk 0:01:59.8]} 21... Qc5+ {[%clk 0:01:29.1]} 22. Kd1 {[%clk
0:01:57.1]} 22... Rxf3 {[%clk 0:01:24.2]} 23. Re1 {[%clk 0:01:56.4]} 23... O-O
{[%clk 0:01:10.7]} 24. Rb7 {[%clk 0:01:52.5]} 24... Qc6 {[%clk 0:01:00.2]} 25.
Rxd7 {[%clk 0:01:49.4]} 25... Qxd7 {[%clk 0:00:55.7]} 26. Qg5+ {[%clk 0:01:49]}
26... Ng7 {[%clk 0:00:51.3]} 27. Rg1 {[%clk 0:01:46.2]} 27... f6 {[%clk
0:00:48.3]} 28. exf6 {[%clk 0:01:42.8]} 28... R8xf6 {[%clk 0:00:47.5]} 29. Qe5
{[%clk 0:01:36.7]} 29... Rf1+ {[%clk 0:00:42.5]} 30. Rxf1 {[%clk 0:01:35.9]}
30... Rxf1+ {[%clk 0:00:42.5]} 31. Kd2 {[%clk 0:01:36]} 31... Rf2+ {[%clk
0:00:35.3]} 32. Ke1 {[%clk 0:01:34.6]} 32... Rxa2 {[%clk 0:00:28.5]} 33. h4
{[%clk 0:01:26.8]} 33... Nf5 {[%clk 0:00:24.9]} 34. h5 {[%clk 0:01:24.1]} 34...
Qc6 {[%clk 0:00:22.7]} 35. Qb8+ {[%clk 0:01:18.8]} 35... Kf7 {[%clk 0:00:21.7]}
36. Qb1 {[%clk 0:01:14.4]} 36... Qc3+ {[%clk 0:00:19]} 37. Kf1 {[%clk
0:01:12.7]} 37... Qf3+ {[%clk 0:00:18.3]} 38. Ke1 {[%clk 0:01:10]} 38... Qe2#
{[%clk 0:00:18.1]} 0-1

[Event "Early-Titled-Tuesday-Blitz-November-28-2023"]
[Site "Chess.com"]
[Date "2023.11.28"]
[Round "8"]
[White "mishanick"]
[Black "IwkooO"]
[Result "1-0"]
[WhiteElo "3061"]
[BlackElo "2686"]
[TimeControl "180+1"]
[EndTime "9:33:58 PST"]
[Termination "mishanick won by checkmate"]

1. d4 {[%clk 0:03:00.9]} 1... Nf6 {[%clk 0:02:55.4]} 2. c4 {[%clk 0:03:01.1]}
2... e6 {[%clk 0:02:51.5]} 3. Nc3 {[%clk 0:03:01.4]} 3... Bb4 {[%clk 0:02:50.1]}
4. e3 {[%clk 0:03:01.6]} 4... O-O {[%clk 0:02:48.3]} 5. Bd3 {[%clk 0:03:02.1]}
5... c5 {[%clk 0:02:47.5]} 6. Nf3 {[%clk 0:02:57.5]} 6... d5 {[%clk 0:02:45.3]}
7. cxd5 {[%clk 0:02:56.8]} 7... Nxd5 {[%clk 0:02:44.3]} 8. Bd2 {[%clk
0:02:55.9]} 8... Nc6 {[%clk 0:02:44]} 9. O-O {[%clk 0:02:55.4]} 9... cxd4 {[%clk
0:02:41.7]} 10. exd4 {[%clk 0:02:56.3]} 10... Nf6 {[%clk 0:02:38]} 11. Be3
{[%clk 0:02:55.5]} 11... b6 {[%clk 0:02:25.1]} 12. Ne4 {[%clk 0:02:38.2]} 12...
h6 {[%clk 0:02:14]} 13. Nxf6+ {[%clk 0:02:31.3]} 13... Qxf6 {[%clk 0:02:14.4]}
14. Be4 {[%clk 0:02:29.2]} 14... Bd7 {[%clk 0:02:03.3]} 15. Qa4 {[%clk
0:02:16.8]} 15... b5 {[%clk 0:01:59.2]} 16. Qxb5 {[%clk 0:02:10.4]} 16... Rab8
{[%clk 0:01:57]} 17. Qa6 {[%clk 0:02:06.5]} 17... Rb6 {[%clk 0:01:18.7]} 18. Qe2
{[%clk 0:02:03.9]} 18... Rbb8 {[%clk 0:01:13.2]} 19. Rac1 {[%clk 0:02:04]} 19...
Ne7 {[%clk 0:01:06.7]} 20. Ne5 {[%clk 0:02:03.8]} 20... Bb5 {[%clk 0:01:06.8]}
21. Bd3 {[%clk 0:02:03.5]} 21... Bxd3 {[%clk 0:01:04.9]} 22. Qxd3 {[%clk
0:02:03.9]} 22... Rfd8 {[%clk 0:01:05]} 23. Qe4 {[%clk 0:01:57.7]} 23... Bd6
{[%clk 0:01:04]} 24. Nc4 {[%clk 0:01:58.2]} 24... Nd5 {[%clk 0:01:02.1]} 25.
Rfd1 {[%clk 0:01:57.3]} 25... Qe7 {[%clk 0:01:00.5]} 26. b3 {[%clk 0:01:54.3]}
26... Rdc8 {[%clk 0:00:54.7]} 27. Qg4 {[%clk 0:01:52.7]} 27... Qc7 {[%clk
0:00:51.6]} 28. Bxh6 {[%clk 0:01:32.5]} 28... f5 {[%clk 0:00:50.2]} 29. Qg6
{[%clk 0:01:32.1]} 29... Bxh2+ {[%clk 0:00:47.5]} 30. Kf1 {[%clk 0:01:32]} 30...
Re8 {[%clk 0:00:37.7]} 31. g3 {[%clk 0:01:09.2]} 31... f4 {[%clk 0:00:33.6]} 32.
Nd6 {[%clk 0:01:05.8]} 32... Qd7 {[%clk 0:00:21.9]} 33. Nxe8 {[%clk 0:01:06.1]}
33... Rxe8 {[%clk 0:00:22.8]} 34. Bxg7 {[%clk 0:01:05.3]} 34... f3 {[%clk
0:00:15.6]} 35. Be5+ {[%clk 0:01:04.4]} 35... Kf8 {[%clk 0:00:15.9]} 36. Qh6+
{[%clk 0:01:04.7]} 36... Kf7 {[%clk 0:00:16]} 37. Qg7# {[%clk 0:01:04.6]} 1-0

[Event "Early-Titled-Tuesday-Blitz-November-28-2023"]
[Site "Chess.com"]
[Date "2023.11.28"]
[Round "8"]
[White "nuadvaga"]
[Black "Bodhanas"]
[Result "0-1"]
[WhiteElo "2262"]
[BlackElo "2212"]
[TimeControl "180+1"]
[EndTime "9:33:59 PST"]
[Termination "Bodhanas won by resignation"]

1. e4 {[%clk 0:02:55.8]} 1... e6 {[%clk 0:02:29]} 2. d4 {[%clk 0:02:54.6]} 2...
d5 {[%clk 0:02:28.8]} 3. e5 {[%clk 0:02:55.1]} 3... c5 {[%clk 0:02:28.5]} 4. c3
{[%clk 0:02:55.7]} 4... Nc6 {[%clk 0:02:28.1]} 5. Nf3 {[%clk 0:02:56.2]} 5...
cxd4 {[%clk 0:02:22.7]} 6. cxd4 {[%clk 0:02:54.8]} 6... a6 {[%clk 0:02:19.6]} 7.
a3 {[%clk 0:02:53.4]} 7... Nge7 {[%clk 0:02:18.6]} 8. b4 {[%clk 0:02:53.3]} 8...
Nf5 {[%clk 0:02:14.7]} 9. Bb2 {[%clk 0:02:53.3]} 9... Be7 {[%clk 0:02:14]} 10.
Qd3 {[%clk 0:02:53.1]} 10... Bd7 {[%clk 0:02:11.4]} 11. Nbd2 {[%clk 0:02:53.3]}
11... h6 {[%clk 0:02:05.7]} 12. Rc1 {[%clk 0:02:53]} 12... Rc8 {[%clk
0:02:04.6]} 13. Nb3 {[%clk 0:02:52.8]} 13... Nh4 {[%clk 0:01:58.1]} 14. Nxh4
{[%clk 0:02:47.4]} 14... Bxh4 {[%clk 0:01:57]} 15. Be2 {[%clk 0:02:47.1]} 15...
O-O {[%clk 0:01:45.6]} 16. O-O {[%clk 0:02:46.2]} 16... Be7 {[%clk 0:01:40.7]}
17. f4 {[%clk 0:02:44.7]} 17... f5 {[%clk 0:01:31.6]} 18. exf6 {[%clk
0:02:26.3]} 18... Bxf6 {[%clk 0:01:30.4]} 19. Nc5 {[%clk 0:02:25.6]} 19... Qe7
{[%clk 0:01:22.6]} 20. Bf3 {[%clk 0:02:19.4]} 20... Rc7 {[%clk 0:01:16.6]} 21.
Rce1 {[%clk 0:02:12.3]} 21... Qd6 {[%clk 0:01:14.2]} 22. g3 {[%clk 0:02:09.4]}
22... a5 {[%clk 0:01:10]} 23. b5 {[%clk 0:01:53]} 23... Ne7 {[%clk 0:01:06.3]}
24. a4 {[%clk 0:01:51]} 24... Nf5 {[%clk 0:00:57.7]} 25. Ba3 {[%clk 0:01:42.5]}
25... Bxd4+ {[%clk 0:00:56.9]} 26. Rf2 {[%clk 0:01:30.8]} 26... Bxc5 {[%clk
0:00:50.4]} 27. Bxc5 {[%clk 0:01:29.6]} 27... Qxc5 {[%clk 0:00:50.4]} 28. Kg2
{[%clk 0:01:28.3]} 28... b6 {[%clk 0:00:48.8]} 29. Rfe2 {[%clk 0:01:23.9]} 29...
Rfc8 {[%clk 0:00:47.5]} 30. Bg4 {[%clk 0:01:20.7]} 30... Qc3 {[%clk 0:00:45.2]}
31. Bxf5 {[%clk 0:01:17.8]} 31... exf5 {[%clk 0:00:42.7]} 32. Qxd5+ {[%clk
0:01:17.6]} 32... Kh7 {[%clk 0:00:38.5]} 33. Re7 {[%clk 0:01:13.4]} 33... Qb2+
{[%clk 0:00:30.7]} 34. R1e2 {[%clk 0:01:12.8]} 34... Rc2 {[%clk 0:00:28.1]} 35.
Rxc2 {[%clk 0:00:55.6]} 35... Rxc2+ {[%clk 0:00:27.3]} 36. Kf3 {[%clk
0:00:51.2]} 36... Rf2+ {[%clk 0:00:26.8]} 37. Ke3 {[%clk 0:00:51]} 37... Qe2+
{[%clk 0:00:26.8]} 38. Kd4 {[%clk 0:00:51.1]} 38... Qxe7 {[%clk 0:00:26.6]} 0-1